fUST/lending_fUST_20251213
["ID","MTS","AMOUNT","RATE_DAILY","PERIOD"]
[398375745,1765559390783,-6690.64,0.0004725,120]
[398375747,1765559390829,-500.0,0.00047397,120]
[398375748,1765559390878,-475.0,0.00047397,120]
[398375750,1765559390925,-475.0,0.00047397,120]
[398375752,1765559390972,-475.0,0.00047397,120]
[398375753,1765559391019,-475.0,0.00047397,120]
[398375755,1765559391070,-6063.03438071,0.00047397,120]
[398375757,1765559391121,-605.99957507,0.00047397,120]
[398375759,1765559391171,-787.02505515,0.00047397,120]
[398375760,1765559391219,-568.26962401,0.00047397,120]
[398375762,1765559391273,-1644.71610529,0.00047397,120]
[398375764,1765559391326,-1226.94297906,0.00047397,120]
[398375766,1765559391378,-1439.89856269,0.00047397,120]
[398375767,1765559391427,-838.93527688,0.00047397,120]
[398375769,1765559391488,-557.65509637,0.00047397,120]
[398375771,1765559391536,-571.53116233,0.00047397,120]
[398375773,1765559391585,-612.90080251,0.00047397,120]
[398375774,1765559391639,-284.47649224,0.00047397,120]
[398375776,1765559391692,-503.7,0.00047397,120]
[398375778,1765559391743,-656.83678087,0.00047397,120]
[398375780,1765559391791,-540.53344663,0.00047397,120]
[398375782,1765559391837,-612.99229922,0.00047397,120]
[398375783,1765559391886,-1370.62533584,0.00047397,120]
[398375785,1765559391936,-1540.13497145,0.00047397,120]
[398375787,1765559391987,-517.77109588,0.00047397,120]
[398375789,1765559392036,-642.43043136,0.00047397,120]
[398375791,1765559392082,-1296.02202436,0.00047397,120]
[398375792,1765559392134,-821.92102779,0.00047397,120]
[398375794,1765559392187,-757.47801414,0.00047397,120]
[398375796,1765559392237,-878.08,0.00047397,120]
[398375798,1765559392282,-633.94667917,0.00047397,120]
[398375800,1765559392342,-597.67341473,0.00047397,120]
[398375802,1765559392403,-1143.78365601,0.00047397,120]
[398375803,1765559392461,-3129.94963022,0.00047397,120]
[398375805,1765559392513,-3783.53681502,0.00047397,120]
[398375807,1765559392566,-10320.71452659,0.00047397,120]
[398375809,1765559392617,-1523.87697288,0.00047397,120]
[398375811,1765559392666,-830.77181603,0.00047397,120]
[398375812,1765559392711,-1671.68424169,0.00047397,120]
[398375814,1765559392761,-1682.04893024,0.00047397,120]
[398375816,1765559392810,-2140.04465772,0.00047397,120]
[398375818,1765559392854,-2298.92104739,0.00047397,120]
[398375820,1765559392900,-1481.50060434,0.00047397,120]
[398375822,1765559392950,-1875.97455597,0.00047397,120]
[398375823,1765559393006,-672.38946253,0.00047397,120]
[398375825,1765559393063,-406.43504407,0.00047397,120]
[398375827,1765559393118,-559.0061726,0.00047397,120]
[398375829,1765559393174,-1234.98855653,0.00047397,120]
[398375830,1765559393227,-362.35924086,0.00047397,60]
[398375832,1765559393293,-1641.51347171,0.00047397,120]
[398375834,1765559393352,-1642.9806755,0.00047397,120]
[398375836,1765559393413,-16052.82722882,0.00047397,120]
[398375838,1765559393474,-513.25941707,0.00047397,60]
[398375840,1765559393532,-1350.71305345,0.00047397,120]
[398375842,1765559393588,-615.58742744,0.00047397,120]
[398375844,1765559393639,-1014.26828809,0.00047397,120]
[398375845,1765559393690,-731.44431267,0.00047397,120]
[398375847,1765559393742,-1750.4296253,0.00047397,120]
[398375849,1765559393793,-2037.49124092,0.00047397,120]
[398375851,1765559393842,-629.12420697,0.00047397,120]
[398375853,1765559393890,-3597.61468378,0.00047397,120]
[398375854,1765559393942,-502.65634795,0.00047397,120]
[398375858,1765559394114,-524.16268996,0.00047397,120]
[398375860,1765559394194,-517.94682016,0.00047397,120]
[398375861,1765559394247,-1244.87989054,0.00047397,120]
[398375863,1765559394313,-1075.11399396,0.00047397,120]
[398375865,1765559394373,-798.85751078,0.00047397,120]
[398375867,1765559394432,-1542.87351195,0.00047397,120]
[398375869,1765559394489,-1289.87459709,0.00047397,120]
[398375871,1765559394541,-229.54694101,0.00047397,120]
[398375873,1765559394593,-1597.73925152,0.00047397,120]
[398375874,1765559394645,-785.63072189,0.00047397,120]
[398375876,1765559394700,-291.64151407,0.00047397,120]
[398375878,1765559394748,-1700.81147214,0.00047397,120]
[398375880,1765559394795,-998.49769904,0.00047397,120]
[398375882,1765559394842,-275.5676873,0.00047397,120]
[398375883,1765559394892,-897.76656777,0.00047397,120]
[398375885,1765559394946,-664.8289626,0.00047397,120]
[398375887,1765559395005,-2274.21792451,0.00047397,120]
[398375889,1765559395061,-601.63196266,0.00047397,120]
[398375891,1765559395119,-700.97203745,0.00047397,120]
[398375892,1765559395176,-718.79036479,0.00047397,120]
[398375894,1765559395236,-2850.0,0.0004778,120]
[398375896,1765559395292,-475.0,0.000479,120]
[398375898,1765559395348,-475.0,0.000479,120]
[398375900,1765559395406,-475.0,0.000479,120]
[398375902,1765559395462,-500.0,0.00047945,120]
[398375903,1765559395520,-500.0,0.00047945,120]
[398375905,1765559395577,-500.0,0.00047945,30]
[398375907,1765559395635,-500.0,0.00047945,120]
[398375909,1765559395690,-500.0,0.00047945,120]
[398375911,1765559395741,-500.0,0.00047945,120]
[398375912,1765559395789,-200.0,0.00047945,120]
[398375914,1765559395843,-200.0,0.00047945,120]
[398375916,1765559395898,-875.17508608,0.00048,120]
[398375918,1765559395952,-800.0,0.00048,120]
[398375920,1765559396007,-1000.0,0.00048,120]
[398375921,1765559396060,-465.68717795,0.00048,120]
[398375923,1765559396117,-400.0,0.00048,120]
[398375925,1765559396175,-765.49992429,0.00048,60]
[398375927,1765559396231,-174.0,0.000482,120]
[398375929,1765559396284,-152.0,0.00048219,120]
[398375931,1765559396338,-500.0,0.00048219,120]
[398375932,1765559396391,-500.0,0.00048219,120]
[398375934,1765559396447,-335.0,0.00048329,90]
[398375936,1765559396499,-1268.24893258,0.00048398,120]
[398375938,1765559396549,-2049.864558,0.000484,60]
[398375940,1765559396599,-500.0,0.00048493,120]
[398375941,1765559396646,-500.0,0.00048493,120]
[398375943,1765559396693,-500.0,0.00048493,120]
[398375945,1765559396742,-1142.65430904,0.000487,120]
[398375946,1765559396788,-500.0,0.00048767,120]
[398375947,1765559396832,-500.0,0.00048767,120]
[398375948,1765559396874,-174.0,0.000488,120]
[398375949,1765559396918,-4526.66975465,0.00048875,60]
[398375950,1765559396961,-3057.72325072,0.000489,120]
[398375951,1765559397001,-2000.0,0.000489,120]
[398375952,1765559397041,-102247.0,0.000489,60]
[398375953,1765559397083,-383.74091044,0.000489,120]
[398375955,1765559397129,-800.0,0.00049,120]
[398375957,1765559397178,-400.0,0.00049,120]
[398375959,1765559397227,-500.0,0.00049041,120]
[398375960,1765559397274,-500.0,0.00049041,120]
[398375962,1765559397325,-500.0,0.00049041,120]
[398375964,1765559397379,-500.0,0.00049315,120]
[398375966,1765559397430,-500.0,0.00049315,120]
[398375968,1765559397489,-500.0,0.00049315,120]
[398375969,1765559397537,-504.86255599,0.00049315,120]
[398375971,1765559397589,-152.96940612,0.00049315,120]
[398375973,1765559397639,-152.96940612,0.00049315,120]
[398375975,1765559397684,-152.96940612,0.00049315,120]
[398375977,1765559397728,-152.96940612,0.00049315,120]
[398375978,1765559397773,-152.96940612,0.00049315,120]
[398375980,1765559397821,-152.96940612,0.00049315,120]
[398375982,1765559397869,-152.96940612,0.00049315,120]
[398375984,1765559397915,-152.96940612,0.00049315,120]
[398375986,1765559397961,-152.96940612,0.00049315,120]
[398375988,1765559398008,-152.96940612,0.00049315,120]
[398375989,1765559398059,-152.96940612,0.00049315,120]
[398375991,1765559398106,-152.96940612,0.00049315,120]
[398375993,1765559398153,-152.96940612,0.00049315,120]
[398375995,1765559398197,-152.96940612,0.00049315,120]
[398375997,1765559398242,-152.96940612,0.00049315,120]
[398375998,1765559398288,-152.96940612,0.00049315,120]
[398376000,1765559398342,-152.96940612,0.00049315,120]
[398376002,1765559398393,-152.96940612,0.00049315,120]
[398376004,1765559398442,-152.96940612,0.00049315,120]
[398376006,1765559398484,-152.96940612,0.00049315,120]
[398376008,1765559398530,-152.96940612,0.00049315,120]
[398376009,1765559398578,-152.96940612,0.00049315,120]
[398376011,1765559398626,-152.96940612,0.00049315,120]
[398376013,1765559398671,-152.96940612,0.00049315,120]
[398376015,1765559398714,-152.96940612,0.00049315,120]
[398376017,1765559398756,-152.96940612,0.00049315,120]
[398376018,1765559398803,-152.96940612,0.00049315,120]
[398376020,1765559398849,-152.96940612,0.00049315,120]
[398376022,1765559398900,-152.96940612,0.00049315,120]
[398376024,1765559398948,-152.96940612,0.00049315,120]
[398376028,1765559399149,-152.96940612,0.00049315,120]
[398376029,1765559399199,-152.96940612,0.00049315,120]
[398376031,1765559399250,-152.96940612,0.00049315,120]
[398376033,1765559399298,-152.96940612,0.00049315,120]
[398376035,1765559399347,-152.96940612,0.00049315,120]
[398376037,1765559399394,-152.96940612,0.00049315,120]
[398376038,1765559399444,-152.96940612,0.00049315,120]
[398376040,1765559399496,-174.0,0.000494,120]
[398376042,1765559399542,-1452.0133248,0.0004943,120]
[398376044,1765559399586,-23310.5814,0.00049444,30]
[398376046,1765559399629,-500.0,0.00049589,120]
[398376048,1765559399671,-500.0,0.00049589,120]
[398376049,1765559399714,-500.0,0.00049589,120]
[398376051,1765559399755,-2286.99339596,0.000496,120]
[398376053,1765559399797,-337.58,0.00049613,120]
[398376055,1765559399838,-6690.64,0.00049613,120]
[398376057,1765559399883,-315.65,0.00049613,120]
[398376058,1765559399929,-5184.0,0.00049797,120]
[398376060,1765559399979,-500.0,0.00049863,120]
[398376062,1765559400027,-537.43070915,0.00049863,120]
[398376064,1765559400079,-400.0,0.000499,30]
[398376065,1765559400129,-174.0,0.0005,120]
[398376067,1765559400185,-847.07247576,0.0005,120]
[398376069,1765559400242,-555.26019534,0.0005,120]
[398376071,1765559400286,-257.8567548,0.0005,120]
[398376073,1765559400333,-678.89699247,0.0005,120]
[398376074,1765559400380,-313.14341546,0.0005,120]
[398376076,1765559400428,-416.207699,0.0005,120]
[398376078,1765559400477,-590.96825272,0.0005,120]
[398376080,1765559400522,-800.0,0.0005,120]
[398376082,1765559400565,-1000.0,0.0005,120]
[398376083,1765559400610,-6051.74204689,0.0005,120]
[398376085,1765559400658,-2142.7295454,0.0005,30]
[398376087,1765559400703,-615.60856,0.0005,120]
[398376089,1765559400754,-730.39793803,0.0005,120]
[398376091,1765559400805,-1000.0,0.0005,120]
[398376092,1765559400853,-1000.0,0.0005,30]
[398376094,1765559400902,-455.46144527,0.0005,120]
[398376096,1765559400956,-4000.0,0.0005,120]
[398376098,1765559401005,-14350.38,0.0005,120]
[398376100,1765559401050,-2621.40446238,0.0005,120]
[398376101,1765559401095,-5018.67526187,0.0005,31]
[398376103,1765559401147,-2532.32113636,0.0005,120]
[398376105,1765559401199,-2396.11732184,0.0005,120]
[398376107,1765559401249,-1303.86178551,0.0005,120]
[398376109,1765559401297,-2980.13,0.0005,120]
[398376111,1765559401358,-182.02501173,0.0005,120]
[398376112,1765559401408,-500.0,0.00050136,120]
[398376114,1765559401462,-500.0,0.00050137,120]
[398376116,1765559401513,-500.0,0.00050342,30]
[398376118,1765559401562,-500.0,0.0005041,120]
[398376120,1765559401610,-500.0,0.00050684,120]
[398376121,1765559401664,-500.0,0.00050684,120]
[398376123,1765559401720,-174.0,0.000507,120]
[398376125,1765559401769,-5184.0,0.000507,120]
[398376127,1765559401816,-179.85611511,0.00050784,42]
[398376128,1765559401861,-2000.0,0.000509,120]
[398376130,1765559401913,-7627.6,0.000509,120]
[398376132,1765559401964,-254.34769149,0.00050958,120]
[398376134,1765559402012,-200.0,0.00050965,120]
[398376136,1765559402057,-1000.0,0.00050999,120]
[398376138,1765559402107,-240227.27,0.00051,120]
[398376139,1765559402163,-645.58574312,0.00051,120]
[398376141,1765559402215,-800.0,0.00051,120]
[398376143,1765559402264,-1000.0,0.00051,120]
[398376145,1765559402315,-400.0,0.00051,120]
[398376146,1765559402363,-3000.0,0.00051,85]
[398376148,1765559402416,-182.02501173,0.00051,120]
[398376150,1765559402471,-3000.0,0.0005101,85]
[398376152,1765559402528,-3000.0,0.0005102,85]
[398376153,1765559402579,-3000.0,0.0005103,85]
[398376155,1765559402634,-3000.0,0.0005104,85]
[398376157,1765559402686,-3000.0,0.0005105,85]
[398376159,1765559402737,-3000.0,0.0005106,85]
[398376161,1765559402787,-5969.756761,0.0005107,85]
[398376163,1765559402833,-1692.39,0.000511,120]
[398376164,1765559402879,-1733.0,0.0005111,120]
[398376165,1765559402935,-210.0,0.0005119,30]
[398376166,1765559402988,-500.0,0.00051232,120]
[398376167,1765559403047,-174.0,0.000513,120]
[398376168,1765559403103,-335.0,0.00051349,120]
[398376170,1765559403161,-500.0,0.0005178,120]
[398376172,1765559403218,-335.0,0.00051781,120]
[398376174,1765559403273,-5184.0,0.00051797,120]
[398376175,1765559403331,-174.0,0.000519,120]
[398376177,1765559403390,-50000.0,0.000519,120]
[398376179,1765559403448,-1075.7600057,0.000519,120]
[398376181,1765559403504,-1000.0,0.00051999,120]
[398376183,1765559403564,-330.34089697,0.00052,120]
[398376185,1765559403619,-800.0,0.00052,120]
[398376186,1765559403673,-1000.0,0.00052,120]
[398376188,1765559403731,-1000.0,0.00052,120]
[398376190,1765559403790,-500.0,0.00052,120]
[398376192,1765559403846,-325.0,0.00052,120]
[398376195,1765559404031,-68294.7799143,0.00052,120]
[398376197,1765559404087,-1412.0,0.00052,120]
[398376199,1765559404142,-182.02501173,0.00052,120]
[398376200,1765559404199,-337.58,0.00052093,120]
[398376202,1765559404258,-6690.64,0.00052093,120]
[398376204,1765559404315,-615.60856,0.000521,120]
[398376206,1765559404372,-508.54,0.00052328,120]
[398376208,1765559404426,-475.0,0.0005244,120]
[398376209,1765559404480,-30417.146,0.0005244,120]
[398376211,1765559404538,-210.0,0.0005249,30]
[398376213,1765559404595,-1043.02499114,0.000525,120]
[398376215,1765559404651,-2739.41197921,0.000525,90]
[398376217,1765559404707,-698.54536476,0.000525,120]
[398376218,1765559404760,-174.0,0.000526,120]
[398376220,1765559404816,-5184.0,0.00052797,120]
[398376222,1765559404873,-2000.0,0.000529,120]
[398376224,1765559404935,-50000.0,0.000529,120]
[398376226,1765559404995,-1000.0,0.00052999,120]
[398376228,1765559405048,-966.34909611,0.00053,120]
[398376229,1765559405102,-168.18025503,0.00053,120]
[398376231,1765559405160,-800.0,0.00053,120]
[398376233,1765559405218,-1000.0,0.00053,120]
[398376235,1765559405273,-2000.0,0.00053,120]
[398376236,1765559405327,-2000.0,0.00053,120]
[398376238,1765559405384,-400.0,0.00053,120]
[398376240,1765559405441,-876.8131,0.00053,120]
[398376242,1765559405500,-2212.4771352,0.00053,120]
[398376244,1765559405561,-182.02501173,0.00053,120]
[398376245,1765559405614,-174.0,0.000532,120]
[398376247,1765559405672,-1000.0,0.00053399,120]
[398376249,1765559405732,-200.0,0.00053424,120]
[398376251,1765559405789,-200.0,0.00053424,120]
[398376253,1765559405844,-358.78514359,0.00053424,120]
[398376254,1765559405897,-1931.70838353,0.00053495,120]
[398376256,1765559405953,-475.0,0.00053499,120]
[398376258,1765559406014,-879.2729717,0.000535,120]
[398376260,1765559406072,-210.0,0.0005379,30]
[398376262,1765559406134,-5184.0,0.00053797,120]
[398376264,1765559406192,-174.0,0.000538,120]
[398376266,1765559406246,-302.93993341,0.000538,120]
[398376267,1765559406303,-1075.99336439,0.0005388,30]
[398376269,1765559406362,-400.0,0.000539,120]
[398376271,1765559406419,-1121094.92673708,0.000539,85]
[398376289,1765559407675,-233.24,9.99e-05,2]
[398376291,1765559407695,-233.24,9.99e-05,2]
[398376292,1765559407714,-233.23,9.99e-05,2]
[398376293,1765559407734,-583.74005244,0.00013273,2]
[398376294,1765559407754,-228.6896903,0.00013436,2]
[398376296,1765559407774,-600.0,0.00013698,2]
[398376297,1765559407794,-2175.28528128,0.00013699,2]
[398376308,1765559408574,-150.0,0.00011632,2]
[398376614,1765559431630,-177.0,0.00013632,2]
[398376617,1765559431639,-14.92931772,0.00013699,2]
[398376620,1765559431649,-1500.0,0.00013699,2]
[398376623,1765559431659,-7400.26558647,0.00014478,2]
[398376700,1765559437728,-230.18696679,0.00014477,2]
[398376701,1765559437738,-500.0,0.00014477,2]
[398376702,1765559437748,-500.0,0.00014477,2]
[398376703,1765559437758,-500.0,0.00014477,2]
[398376705,1765559437767,-500.0,0.00014477,2]
[398376706,1765559437782,-500.0,0.00014477,2]
[398376707,1765559437792,-534.91341028,0.00014477,2]
[398376708,1765559437801,-300.0,0.00014477,2]
[398376709,1765559437811,-222690.85759812,0.00014478,2]
[398376710,1765559437836,-31763.45449107,0.00014478,2]
[398376712,1765559437893,-310.34407788,0.00014478,2]
[398376739,1765559439993,-8719.3909719,0.00014478,2]
[398376781,1765559442818,-134454.50029416,0.00014478,2]
[398376783,1765559442828,-1131.67589588,0.00014479,2]
[398376784,1765559442837,-73054.54222858,0.0001458,2]
[398376785,1765559442849,-72710.98371079,0.0001458,2]
[398376832,1765559445952,-744234.47406063,0.0001458,2]
[398376833,1765559445962,-1932.52300173,0.00014581,2]
[398376834,1765559445973,-1932.52300172,0.0001461,2]
[398376835,1765559445983,-1932.52300172,0.00014638,2]
[398376836,1765559445994,-1932.52300172,0.00014667,2]
[398376837,1765559446003,-500.0,0.00014678,2]
[398376838,1765559446013,-500.0,0.00014679,2]
[398376839,1765559446022,-506.23324928,0.00014679,2]
[398376841,1765559446033,-1932.52300172,0.00014695,2]
[398376842,1765559446043,-5679.39107298,0.00014695,2]
[398376843,1765559446053,-300.0,0.00014878,2]
[398376844,1765559446062,-300.0,0.00014878,2]
[398376845,1765559446072,-300.0,0.00014878,2]
[398376846,1765559446082,-300.0,0.00014878,2]
[398376847,1765559446092,-300.0,0.00014878,2]
[398376849,1765559446102,-300.0,0.00014878,2]
[398376850,1765559446111,-300.0,0.00014878,2]
[398376851,1765559446122,-300.0,0.00014878,2]
[398376852,1765559446131,-300.0,0.00014878,2]
[398376853,1765559446142,-300.0,0.00014878,2]
[398376854,1765559446153,-300.0,0.00014878,2]
[398376855,1765559446163,-300.0,0.00014878,2]
[398376857,1765559446172,-300.0,0.00014878,2]
[398376858,1765559446183,-300.0,0.00014878,2]
[398376859,1765559446192,-100000.0,0.00015028,2]
[398376860,1765559446202,-239.819786,0.00015068,2]
[398376861,1765559446211,-1632.69,0.00015242,2]
[398376862,1765559446221,-12846.7272755,0.00015312,2]
[398376863,1765559446230,-204.0,0.00015632,2]
[398376865,1765559446239,-164.0,0.00016247,3]
[398376866,1765559446249,-500.0,0.00016438,2]
[398376867,1765559446259,-1000.0,0.00016986,2]
[398376868,1765559446268,-776.38371112,0.00017497,7]
[398376869,1765559446279,-351.36095581,0.00017497,7]
[398376870,1765559446289,-484.99246635,0.00017534,2]
[398376871,1765559446298,-231.0,0.00017632,2]
[398376872,1765559446308,-160.0,0.0001798,2]
[398376874,1765559446317,-132673.30223556,0.00018,2]
[398376875,1765559446327,-29902.78255392,0.00018,2]
[398376876,1765559446337,-1000.0,0.00018,2]
[398376877,1765559446347,-330.313595,0.00018,2]
[398376878,1765559446357,-330.313595,0.00018,2]
[398376879,1765559446367,-330.313595,0.00018,2]
[398376881,1765559446377,-330.313595,0.00018,2]
[398376882,1765559446387,-206.43,0.00018,2]
[398376883,1765559446397,-500.0,0.00018,2]
[398376884,1765559446408,-455.19327714,0.00018291,2]
[398376885,1765559446418,-819.34789886,0.00018291,2]
[398376886,1765559446428,-239.819786,0.00018493,2]
[398376887,1765559446438,-260.0,0.00018528,2]
[398376889,1765559446449,-2000.0,0.00018839,2]
[398376890,1765559446458,-2000.0,0.00018839,2]
[398376891,1765559446468,-2000.0,0.00018839,2]
[398376892,1765559446477,-2000.0,0.00018839,2]
[398376893,1765559446487,-500.0,0.00019,10]
[398376894,1765559446498,-69999.99999901,0.00019,2]
[398376895,1765559446507,-21398.31550437,0.00019,2]
[398376897,1765559446516,-330.313595,0.00019,2]
[398376898,1765559446526,-330.313595,0.00019,2]
[398376899,1765559446537,-330.313595,0.00019,2]
[398376900,1765559446547,-330.313595,0.00019,2]
[398376901,1765559446557,-190.05433519,0.00019031,2]
[398376902,1765559446567,-175.304852,0.00019178,2]
[398376903,1765559446576,-151.0,0.00019178,2]
[398376904,1765559446586,-152.048235,0.00019178,2]
[398376906,1765559446595,-151.0,0.00019178,2]
[398376907,1765559446605,-151.0,0.00019178,2]
[398376908,1765559446614,-151.0,0.00019178,2]
[398376909,1765559446624,-151.0,0.00019178,2]
[398376910,1765559446635,-151.0,0.00019178,2]
[398376911,1765559446645,-151.0,0.00019178,2]
[398376912,1765559446654,-273.344,0.00019178,2]
[398376914,1765559446663,-151.0,0.00019178,2]
[398376915,1765559446673,-151.0,0.00019178,2]
[398376916,1765559446683,-152.399307,0.00019178,2]
[398376917,1765559446693,-151.0,0.00019178,2]
[398376918,1765559446702,-151.0,0.00019178,2]
[398376919,1765559446712,-151.0,0.00019178,2]
[398376920,1765559446722,-151.0,0.00019178,2]
[398376921,1765559446731,-170.005765,0.00019178,2]
[398376922,1765559446741,-151.0,0.00019178,2]
[398376923,1765559446751,-151.0,0.00019178,2]
[398376924,1765559446760,-28660.14,0.000192,2]
[398376925,1765559446770,-454.480524,0.000192,2]
[398376926,1765559446782,-454.480524,0.000192,2]
[398376927,1765559446792,-454.480524,0.000192,2]
[398376928,1765559446801,-454.480524,0.000192,2]
[398376929,1765559446811,-716.68,0.000192,2]
[398376930,1765559446820,-749.91608461,0.00019543,2]
[398376931,1765559446829,-760.21734075,0.00019555,2]
[398376932,1765559446839,-258.0,0.00019632,2]
[398376933,1765559446848,-1405.44382323,0.00019823,7]
[398376934,1765559446857,-400.0,0.0001998,3]
[398376935,1765559446866,-300.0,0.0001998,7]
[398376936,1765559446875,-550.0,0.0001998,2]
[398376937,1765559446885,-1632.2151465,0.0002,2]
[398376938,1765559446895,-14646.54920117,0.0002,2]
[398376939,1765559446910,-370.23496642,0.0002,2]
[398376940,1765559446920,-23000.0,0.0002,2]
[398376941,1765559446930,-201.95331499,0.0002,2]
[398376942,1765559446940,-502.48163339,0.0002,2]
[398376943,1765559446950,-200.27936924,0.0002,2]
[398376945,1765559446959,-20473.504462,0.0002,2]
[398376946,1765559446969,-1004.83366267,0.0002,6]
[398376947,1765559446980,-2500.0,0.0002,5]
[398376948,1765559446991,-401.53027295,0.0002,3]
[398376949,1765559447001,-180.306419,0.0002,2]
[398376950,1765559447012,-151.0,0.0002,2]
[398376951,1765559447022,-151.0,0.0002,2]
[398376952,1765559447033,-151.0,0.0002,2]
[398376953,1765559447043,-151.0,0.0002,2]
[398376955,1765559447053,-153.79402,0.0002,2]
[398376956,1765559447064,-330.313595,0.0002,2]
[398376957,1765559447076,-330.313595,0.0002,2]
[398376958,1765559447087,-330.313595,0.0002,2]
[398376959,1765559447098,-330.313595,0.0002,2]
[398376960,1765559447109,-151.4091651,0.0002,2]
[398376961,1765559447119,-151.0,0.0002,2]
[398376962,1765559447131,-151.0,0.0002,2]
[398376963,1765559447141,-151.0,0.0002,2]
[398376965,1765559447152,-1349.84895229,0.00020057,2]
[398376966,1765559447161,-1710.48901669,0.0002008,2]
[398376967,1765559447172,-1131.67589582,0.00020109,2]
[398376968,1765559447182,-294.62964754,0.0002013,2]
[398376969,1765559447193,-1500.0,0.00020187,2]
[398376970,1765559447203,-668.60278032,0.00020323,7]
[398376971,1765559447217,-2674.41112129,0.00020323,7]
[398376973,1765559447227,-599.18429874,0.00020323,7]
[398376974,1765559447236,-321.55199895,0.00020323,7]
[398376975,1765559447247,-1286.20799579,0.00020323,7]
[398376976,1765559447256,-2190.214599,0.00020548,2]
[398376977,1765559447266,-2399.73147074,0.00020571,2]
[398376978,1765559447275,-3040.869363,0.00020604,2]
[398376979,1765559447288,-1383.76713468,0.0002061,2]
[398376980,1765559447297,-28660.14,0.000208,2]
[398376982,1765559447307,-255.38590303,0.000209,2]
[398376983,1765559447317,-510.97,0.00021,7]
[398376984,1765559447327,-26800.0,0.00021,2]
[398376985,1765559447337,-158501.87775505,0.00021,2]
[398376988,1765559447478,-7951.94112109,0.00021,2]
[398376989,1765559447503,-73.71559772,0.00021,2]
[398377349,1765559475270,-95000.0,0.00024932,30]
[398377351,1765559475336,-151.0,0.000354,31]
[398377353,1765559475392,-151.0,0.000354,31]
[398377354,1765559475448,-892.094681,0.000354,31]
[398377356,1765559475504,-892.094681,0.000354,31]
[398377358,1765559475563,-892.094681,0.000354,31]
[398377360,1765559475624,-892.094681,0.000354,31]
[398377362,1765559475686,-531.146348,0.000354,31]
[398377364,1765559475746,-531.146348,0.000354,31]
[398377366,1765559475805,-531.146348,0.000354,31]
[398377368,1765559475872,-531.146348,0.000354,31]
[398377370,1765559475944,-151.0,0.00037496,31]
[398377372,1765559476007,-151.0,0.00037496,31]
[398377374,1765559476076,-892.094681,0.00037496,31]
[398377377,1765559476148,-892.094681,0.00037496,31]
[398377379,1765559476218,-892.094681,0.00037496,31]
[398377381,1765559476286,-892.094685,0.00037496,31]
[398377383,1765559476353,-531.146348,0.00037496,31]
[398377385,1765559476417,-531.146348,0.00037496,31]
[398377387,1765559476483,-531.146348,0.00037496,31]
[398377390,1765559476547,-531.146345,0.00037496,31]
[398377392,1765559476619,-500.0,0.00041095,120]
[398377394,1765559476682,-500.0,0.00041095,120]
[398377396,1765559476744,-500.0,0.00041095,120]
[398377398,1765559476810,-500.0,0.00041095,120]
[398377400,1765559476877,-500.0,0.00041095,120]
[398377402,1765559476935,-500.0,0.00041095,120]
[398377405,1765559476994,-1048.47,0.00041095,120]
[398377407,1765559477059,-500.0,0.00041095,120]
[398377408,1765559477120,-500.0,0.00041095,120]
[398377409,1765559477181,-500.0,0.00041095,120]
[398377410,1765559477240,-4308.74,0.00041095,120]
[398377411,1765559477296,-500.0,0.00041095,120]
[398377412,1765559477354,-535.91,0.00041095,120]
[398377413,1765559477413,-500.0,0.00041095,120]
[398377415,1765559477471,-500.0,0.00041095,120]